lending/lending_fUSD_20241120
["ID","MTS","AMOUNT","RATE_DAILY","PERIOD"]
[342797516,1732143048418,-1061.98,0.00054794,120]
[342797517,1732143048428,-1061.98,0.00054794,120]
[342797518,1732143048437,-1061.98,0.00054794,120]
[342797519,1732143048446,-500.0,0.00054794,120]
[342797520,1732143048455,-1061.98,0.00054794,120]
[342797521,1732143048464,-965.73,0.00054794,120]
[342797522,1732143048473,-500.0,0.00054794,120]
[342797523,1732143048483,-500.0,0.00054794,120]
[342797524,1732143048491,-500.0,0.00054794,120]
[342797525,1732143048501,-500.0,0.00054794,120]
[342797526,1732143048510,-594.46,0.00054794,120]
[342797527,1732143048519,-500.0,0.00054794,120]
[342797528,1732143048528,-500.0,0.00054794,120]
[342797529,1732143048537,-500.0,0.00054794,120]
[342797530,1732143048546,-1061.98,0.00054794,120]
[342797531,1732143048555,-1061.98,0.00054794,120]
[342797532,1732143048564,-500.0,0.00054794,120]
[342797533,1732143048573,-1061.98,0.00054794,120]
[342797534,1732143048583,-1061.98,0.00054794,120]
[342797535,1732143048592,-1061.98,0.00054794,120]
[342797536,1732143048602,-1061.98,0.00054794,120]
[342797537,1732143048611,-500.0,0.00054794,120]
[342797538,1732143048620,-1061.98,0.00054794,120]
[342797539,1732143048629,-260.413462,0.00054794,120]
[342797540,1732143048639,-1062.13979533,0.00054794,120]
[342797541,1732143048649,-210.928221,0.00054794,120]
[342797542,1732143048659,-1317.76,0.00054794,120]
[342797543,1732143048668,-500.37760259,0.00054794,120]
[342797544,1732143048677,-500.0,0.00054794,120]
[342797545,1732143048686,-155.055593,0.00054794,120]
[342797546,1732143048695,-1510.86,0.00054794,120]
[342797547,1732143048704,-500.0,0.00054794,120]
[342797548,1732143048713,-1617.12,0.00054794,120]
[342797549,1732143048722,-500.0,0.00054794,120]
[342797550,1732143048731,-657.08,0.00054794,120]
[342797551,1732143048742,-500.0,0.00054794,120]
[342797552,1732143048751,-628.07,0.00054794,120]
[342797553,1732143048760,-4865.56,0.00054794,120]
[342797554,1732143048769,-500.0,0.00054794,120]
[342797555,1732143048779,-500.0,0.00054794,120]
[342797556,1732143048788,-500.0,0.00054794,120]
[342797557,1732143048797,-500.0,0.00054794,120]
[342797558,1732143048806,-500.0,0.00054794,120]
[342797559,1732143048815,-2529.98,0.00054794,120]
[342797560,1732143048825,-500.0,0.00054794,120]
[342797561,1732143048834,-500.0,0.00054794,120]
[342797562,1732143048844,-624.76,0.00054794,120]
[342797563,1732143048853,-635.24,0.00054794,120]
[342797564,1732143048863,-500.0,0.00054794,120]
[342797565,1732143048876,-750.97,0.00054794,120]
[342797566,1732143048885,-500.0,0.00054794,120]
[342797567,1732143048894,-500.0,0.00054794,120]
[342797568,1732143048903,-1761.11,0.00054794,120]
[342797569,1732143048914,-500.0,0.00054794,120]
[342797570,1732143048923,-500.0,0.00054794,120]
[342797571,1732143048932,-46265.17,0.00054794,120]
[342797572,1732143048942,-500.0,0.00054794,120]
[342797573,1732143048952,-644.52,0.00054794,120]
[342797574,1732143048962,-880.93,0.00054794,120]
[342797575,1732143048972,-500.0,0.00054794,120]
[342797576,1732143048983,-500.0,0.00054794,120]
[342797577,1732143048992,-4390.12,0.00054794,120]
[342797578,1732143049002,-500.0,0.00054794,120]
[342797579,1732143049012,-500.0,0.00054794,120]
[342797580,1732143049021,-500.0,0.00054794,120]
[342797581,1732143049031,-3641.91,0.00054794,120]
[342797582,1732143049046,-500.0,0.00054794,120]
[342797583,1732143049055,-500.0,0.00054794,120]
[342797584,1732143049064,-500.0,0.00054794,120]
[342797585,1732143049074,-2046.77,0.00054794,120]
[342797586,1732143049083,-500.0,0.00054794,120]
[342797587,1732143049092,-500.0,0.00054794,120]
[342797588,1732143049101,-500.0,0.00054794,120]
[342797589,1732143049110,-500.0,0.00054794,120]
[342797590,1732143049121,-500.0,0.00054794,120]
[342797591,1732143049130,-519.31,0.00054794,120]
[342797592,1732143049140,-1582.94,0.00054794,120]
[342797593,1732143049150,-1566.08,0.00054794,120]
[342797594,1732143049159,-500.0,0.00054794,120]
[342797595,1732143049169,-1540.18,0.00054794,120]
[342797596,1732143049179,-500.0,0.00054794,120]
[342797597,1732143049188,-500.0,0.00054794,120]
[342797598,1732143049200,-500.0,0.00054794,120]
[342797599,1732143049209,-500.0,0.00054794,120]
[342797600,1732143049218,-500.0,0.00054794,120]
[342797601,1732143049228,-200.0,0.00054794,10]
[342797602,1732143049237,-629.53310923,0.00054794,120]
[342797603,1732143049246,-32182.96,0.00054794,120]
[342797604,1732143049256,-500.0,0.00054794,120]
[342797605,1732143049266,-502.86110821,0.00054794,120]
[342797606,1732143049275,-500.0,0.00054794,120]
[342797607,1732143049284,-2395.44,0.00054794,120]
[342797608,1732143049294,-500.0,0.00054794,120]
[342797609,1732143049304,-500.0,0.00054794,120]
[342797610,1732143049313,-500.0,0.00054794,120]
[342797611,1732143049322,-500.0,0.00054794,120]
[342797612,1732143049331,-500.0,0.00054794,120]
[342797613,1732143049341,-500.0,0.00054794,120]
[342797614,1732143049350,-500.0,0.00054794,120]
[342797615,1732143049359,-774.88,0.00054794,120]
[342797616,1732143049368,-500.0,0.00054794,120]
[342797617,1732143049377,-500.0,0.00054794,120]
[342797618,1732143049386,-500.0,0.00054794,120]
[342797619,1732143049395,-500.0,0.00054794,120]
[342797620,1732143049405,-500.0,0.00054794,120]
[342797621,1732143049414,-500.0,0.00054794,120]
[342797622,1732143049554,-3018.97,0.00054794,120]
[342797623,1732143049564,-505.8791325,0.00054794,120]
[342797624,1732143049573,-500.0,0.00054794,120]
[342797625,1732143049582,-500.0,0.00054794,120]
[342797626,1732143049592,-500.0,0.00054794,120]
[342797627,1732143049602,-1221.56,0.00054794,120]
[342797628,1732143049611,-500.0,0.00054794,120]
[342797629,1732143049621,-949.33,0.00054794,120]
[342797630,1732143049630,-500.0,0.00054794,120]
[342797631,1732143049644,-500.0,0.00054794,120]
[342797632,1732143049653,-500.0,0.00054794,120]
[342797633,1732143049663,-500.0,0.00054794,120]
[342797634,1732143049672,-512.47,0.00054794,120]
[342797635,1732143049682,-500.0,0.00054794,120]
[342797636,1732143049692,-500.0,0.00054794,120]
[342797637,1732143049701,-975.73,0.00054794,120]
[342797638,1732143049710,-553.31020557,0.00054794,120]
[342797639,1732143049719,-500.0,0.00054794,120]
[342797640,1732143049729,-1680.87,0.00054794,120]
[342797641,1732143049738,-500.0,0.00054794,120]
[342797642,1732143049747,-500.0,0.00054794,120]
[342797643,1732143049757,-2068.97,0.00054794,120]
[342797644,1732143049766,-509.92,0.00054794,120]
[342797645,1732143049776,-500.0,0.00054794,120]
[342797646,1732143049785,-500.0,0.00054794,120]
[342797647,1732143049795,-2386.08,0.00054794,120]
[342797648,1732143049804,-850.0,0.00054794,120]
[342797649,1732143049813,-2587.78,0.00054794,120]
[342797650,1732143049822,-500.0,0.00054794,120]
[342797651,1732143049832,-1481.97,0.00054794,120]
[342797652,1732143049843,-500.0,0.00054794,120]
[342797653,1732143049853,-500.0,0.00054794,120]
[342797654,1732143049862,-260.413462,0.00054794,120]
[342797655,1732143049875,-210.928221,0.00054794,120]
[342797656,1732143049885,-1478.74,0.00054794,120]
[342797657,1732143049894,-320.64664824,0.00054794,120]
[342797658,1732143049904,-155.055593,0.00054794,120]
[342797659,1732143049915,-500.0,0.00054794,120]
[342797660,1732143049925,-500.0,0.00054794,120]
[342797661,1732143049934,-500.0,0.00054794,120]
[342797662,1732143049947,-500.0,0.00054794,120]
[342797663,1732143049958,-580.13,0.00054794,120]
[342797664,1732143049967,-500.0,0.00054794,120]
[342797665,1732143049977,-500.0,0.00054794,120]
[342797666,1732143049987,-1753.89,0.00054794,120]
[342797667,1732143049996,-500.0,0.00054794,120]
[342797668,1732143050006,-500.0,0.00054794,120]
[342797669,1732143050016,-816.51,0.00054794,120]
[342797670,1732143050026,-500.0,0.00054794,120]
[342797671,1732143050037,-611.02028462,0.00054794,120]
[342797672,1732143050047,-2245.37,0.00054794,120]
[342797673,1732143050056,-500.0,0.00054794,120]
[342797674,1732143050066,-10880.09,0.00054794,120]
[342797675,1732143050076,-500.0,0.00054794,120]
[342797676,1732143050085,-500.0,0.00054794,120]
[342797677,1732143050095,-500.0,0.00054794,120]
[342797678,1732143050104,-3622.31,0.00054794,120]
[342797679,1732143050114,-500.0,0.00054794,120]
[342797680,1732143050124,-500.0,0.00054794,120]
[342797681,1732143050133,-500.0,0.00054794,120]
[342797682,1732143050143,-502.6,0.00054794,120]
[342797683,1732143050152,-500.0,0.00054794,120]
[342797684,1732143050162,-500.0,0.00054794,120]
[342797685,1732143050172,-1317.84,0.00054794,120]
[342797686,1732143050181,-366.08301554,0.00054794,120]
[342797687,1732143050191,-1518.89,0.00054794,90]
[342797688,1732143050202,-1643.31,0.00054794,120]
[342797689,1732143050215,-368.85476559,0.00054794,120]
[342797690,1732143050225,-500.0,0.00054794,120]
[342797691,1732143050234,-500.0,0.00054794,120]
[342797692,1732143050244,-500.0,0.00054794,30]
[342797693,1732143050254,-500.0,0.00054794,120]
[342797694,1732143050264,-1298.63,0.00054794,120]
[342797695,1732143050274,-500.0,0.00054794,120]
[342797696,1732143050283,-943.47,0.00054794,120]
[342797697,1732143050292,-500.0,0.00054794,120]
[342797698,1732143050301,-1649.32,0.00054794,120]
[342797699,1732143050311,-500.0,0.00054794,120]
[342797700,1732143050320,-550.87,0.00054794,120]
[342797701,1732143050329,-5640.48,0.00054794,120]
[342797702,1732143050339,-500.0,0.00054794,120]
[342797703,1732143050348,-2158.9,0.00054794,120]
[342797704,1732143050358,-500.0,0.00054794,120]
[342797705,1732143050367,-500.0,0.00054794,120]
[342797706,1732143050376,-1165.26,0.00054794,120]
[342797707,1732143050386,-500.0,0.00054794,120]
[342797708,1732143050396,-500.0,0.00054794,120]
[342797709,1732143050405,-1244.51,0.00054794,120]
[342797710,1732143050414,-500.0,0.00054794,120]
[342797711,1732143050423,-500.0,0.00054794,120]
[342797712,1732143050433,-500.0,0.00054794,120]
[342797713,1732143050443,-250.0,0.00054794,120]
[342797714,1732143050452,-500.0,0.00054794,120]
[342797715,1732143050462,-9870.91,0.00054794,120]
[342797716,1732143050471,-500.0,0.00054794,120]
[342797717,1732143050480,-1110.14,0.00054794,120]
[342797718,1732143050490,-567.02,0.00054794,120]
[342797719,1732143050499,-986.78,0.00054794,120]
[342797720,1732143050508,-500.0,0.00054794,120]
[342797721,1732143050517,-500.0,0.00054794,120]
[342797722,1732143050527,-500.0,0.00054794,120]
[342797723,1732143050537,-500.0,0.00054794,120]
[342797724,1732143050547,-500.0,0.00054794,120]
[342797725,1732143050556,-651.9,0.00054794,120]
[342797726,1732143050565,-500.0,0.00054794,120]
[342797727,1732143050575,-500.0,0.00054794,120]
[342797728,1732143050584,-3368.96,0.00054794,120]
[342797729,1732143050593,-500.0,0.00054794,120]
[342797730,1732143050603,-6243.58,0.00054794,120]
[342797731,1732143050613,-500.0,0.00054794,120]
[342797732,1732143050623,-1221.81,0.00054794,120]
[342797733,1732143050632,-1021.75,0.00054794,120]
[342797734,1732143050643,-1378.96,0.00054794,120]
[342797735,1732143050652,-500.0,0.00054794,120]
[342797736,1732143050662,-500.0,0.00054794,120]
[342797737,1732143050671,-1402.48,0.00054794,120]
[342797738,1732143050680,-500.0,0.00054794,120]
[342797739,1732143050690,-2324.89,0.00054794,120]
[342797740,1732143050700,-1098.99,0.00054794,7]
[342797741,1732143050710,-500.0,0.00054794,120]
[342797742,1732143050719,-500.0,0.00054794,120]
[342797743,1732143050729,-3357.52,0.00054794,120]
[342797744,1732143050738,-500.0,0.00054794,120]
[342797745,1732143050747,-500.0,0.00054794,120]
[342797746,1732143050757,-1503.83,0.00054794,120]
[342797747,1732143050767,-631.52,0.00054794,120]
[342797748,1732143050776,-500.0,0.00054794,120]
[342797749,1732143050786,-500.0,0.00054794,120]
[342797750,1732143050795,-610.46,0.00054794,120]
[342797751,1732143050804,-4485.14,0.00054794,120]
[342797752,1732143050813,-500.0,0.00054794,120]
[342797753,1732143050823,-500.0,0.00054794,120]
[342797754,1732143050832,-676.3,0.00054794,120]
[342797755,1732143050842,-500.0,0.00054794,120]
[342797756,1732143050851,-1449.22,0.00054794,120]
[342797757,1732143050860,-500.0,0.00054794,120]
[342797758,1732143050872,-500.0,0.00054794,120]
[342797759,1732143050881,-216.42,0.00054794,120]
[342797760,1732143050891,-802.14,0.00054794,120]
[342797761,1732143050900,-1005.77,0.00054794,120]
[342797762,1732143050910,-500.0,0.00054794,120]
[342797763,1732143050920,-62267.29,0.00054794,5]
[342797764,1732143050929,-500.0,0.00054794,120]
[342797765,1732143050940,-1000.0,0.00054794,120]
[342797766,1732143050950,-500.0,0.00054794,120]
[342797767,1732143050960,-500.0,0.00054794,120]
[342797768,1732143050970,-500.0,0.00054794,120]
[342797769,1732143050979,-1200.11,0.00054794,120]
[342797770,1732143050989,-500.0,0.00054794,120]
[342797771,1732143050999,-4633.73,0.00054794,120]
[342797772,1732143051008,-1462.06,0.00054794,120]
[342797773,1732143051018,-500.0,0.00054794,120]
[342797774,1732143051027,-1071.61,0.00054794,120]
[342797775,1732143051037,-1246.53,0.00054794,120]
[342797776,1732143051047,-500.0,0.00054794,120]
[342797777,1732143051057,-500.0,0.00054794,120]
[342797778,1732143051067,-665.76,0.00054794,120]
[342797779,1732143051077,-334.55964859,0.00054794,120]
[342797780,1732143051086,-500.0,0.00054794,120]
[342797781,1732143051096,-1619.4,0.00054794,120]
[342797782,1732143051106,-534.16,0.00054794,120]
[342797783,1732143051116,-4155.63,0.00054794,120]
[342797784,1732143051126,-500.0,0.00054794,120]
[342797785,1732143051137,-500.0,0.00054794,120]
[342797786,1732143051147,-500.0,0.00054794,120]
[342797787,1732143051157,-716.03,0.00054794,120]
[342797788,1732143051168,-710.7,0.00054794,120]
[342797789,1732143051177,-163.0,0.00054794,120]
[342797790,1732143051187,-1328.15,0.00054794,120]
[342797791,1732143051197,-3842.23,0.00054794,120]
[342797792,1732143051207,-1770.4,0.00054794,120]
[342797793,1732143051217,-734.2,0.00054794,120]
[342797794,1732143051226,-1828.16,0.00054794,120]
[342797795,1732143051236,-500.0,0.00054794,120]
[342797796,1732143051245,-500.0,0.00054794,120]
[342797797,1732143051254,-500.0,0.00054794,120]
[342797798,1732143051263,-4113.57,0.00054794,120]
[342797799,1732143051272,-500.0,0.00054794,120]
[342797800,1732143051282,-3361.09,0.00054794,120]
[342797801,1732143051291,-2336.41,0.00054794,120]
[342797802,1732143051300,-914.26,0.00054794,120]
[342797803,1732143051310,-1199.34,0.00054794,120]
[342797804,1732143051319,-2227.59,0.00054794,120]
[342797805,1732143051328,-1225.66,0.00054794,120]
[342797806,1732143051337,-818.4,0.00054794,120]
[342797807,1732143051347,-500.0,0.00054794,120]
[342797808,1732143051357,-500.0,0.00054794,120]
[342797809,1732143051366,-945.67,0.00054794,120]
[342797810,1732143051375,-4656.57,0.00054794,120]
[342797811,1732143051385,-500.0,0.00054794,120]
[342797812,1732143051394,-656.2,0.00054794,120]
[342797813,1732143051403,-566.17002027,0.00054794,120]
[342797814,1732143051413,-1601.15,0.00054794,120]
[342797815,1732143051422,-2590.51,0.00054794,120]
[342797816,1732143051433,-500.0,0.00054794,120]
[342797817,1732143051443,-500.0,0.00054794,120]
[342797818,1732143051454,-609.85,0.00054794,120]
[342797819,1732143051464,-500.0,0.00054794,120]
[342797820,1732143051475,-1087.48,0.00054794,120]
[342797821,1732143051484,-500.0,0.00054794,120]
[342797822,1732143051494,-500.0,0.00054794,120]
[342797823,1732143051505,-617.4,0.00054794,120]
[342797824,1732143051514,-530.21,0.00054794,120]
[342797825,1732143051523,-1021.22,0.00054794,120]
[342797826,1732143051533,-500.0,0.00054794,120]
[342797827,1732143051543,-500.0,0.00054794,120]
[342797828,1732143051552,-4078.12,0.00054794,120]
[342797829,1732143051563,-500.0,0.00054794,120]
[342797830,1732143051573,-1271.08,0.00054794,120]
[342797831,1732143051583,-500.0,0.00054794,120]
[342797832,1732143051594,-630.13,0.00054794,120]
[342797833,1732143051604,-500.0,0.00054794,120]
[342797834,1732143051901,-1053.42,0.00054794,120]
[342797835,1732143051970,-10737.37,0.00054794,21]
[342797836,1732143051981,-3054.48,0.00054794,120]
[342797837,1732143051990,-868.75,0.00054794,120]
[342797838,1732143052000,-772.0,0.00054794,120]
[342797839,1732143052010,-1615.7,0.00054794,120]
[342797840,1732143052021,-790.82,0.00054794,120]
[342797841,1732143052030,-500.0,0.00054794,120]
[342797842,1732143052039,-500.0,0.00054794,120]
[342797843,1732143052049,-500.0,0.00054794,120]
[342797844,1732143052059,-500.0,0.00054794,120]
[342797845,1732143052068,-500.0,0.00054794,120]
[342797846,1732143052080,-500.0,0.00054794,120]
[342797847,1732143052090,-500.0,0.00054794,120]
[342797848,1732143052101,-500.0,0.00054794,120]
[342797849,1732143052111,-500.0,0.00054794,120]
[342797850,1732143052122,-500.0,0.00054794,120]
[342797851,1732143052132,-2780.77,0.00054794,120]
[342797852,1732143052143,-500.0,0.00054794,120]
[342797853,1732143052152,-3170.06,0.00054794,120]
[342797854,1732143052162,-500.0,0.00054794,120]
[342797855,1732143052172,-530.51,0.00054794,120]
[342797856,1732143052181,-814.28,0.00054794,120]
[342797857,1732143052191,-500.0,0.00054794,120]
[342797858,1732143052200,-500.0,0.00054794,120]
[342797859,1732143052210,-500.0,0.00054794,120]
[342797860,1732143052220,-500.0,0.00054794,120]
[342797861,1732143052230,-500.0,0.00054794,120]
[342797862,1732143052240,-500.0,0.00054794,120]
[342797863,1732143052249,-4610.65,0.00054794,120]
[342797864,1732143052259,-1053.94,0.00054794,120]
[342797865,1732143052269,-832.21,0.00054794,120]
[342797866,1732143052278,-500.0,0.00054794,120]
[342797867,1732143052288,-559.12,0.00054794,120]
[342797868,1732143052298,-500.0,0.00054794,120]
[342797869,1732143052308,-500.0,0.00054794,120]
[342797870,1732143052317,-962.23,0.00054794,120]
[342797871,1732143052327,-500.0,0.00054794,120]
[342797872,1732143052336,-630.95,0.00054794,120]
[342797873,1732143052346,-500.0,0.00054794,120]
[342797874,1732143052356,-376.20000061,0.00054794,120]
[342797875,1732143052365,-7093.52,0.00054794,120]
[342797876,1732143052375,-1497.99,0.00054794,120]
[342797877,1732143052384,-500.0,0.00054794,120]
[342797878,1732143052395,-3030.53,0.00054794,120]
[342797879,1732143052405,-500.0,0.00054794,120]
[342797880,1732143052415,-4996.62,0.00054794,120]
[342797881,1732143052425,-2002.76,0.00054794,120]
[342797882,1732143052435,-1038.47,0.00054794,120]
[342797883,1732143052445,-500.0,0.00054794,120]
[342797884,1732143052455,-3755.03,0.00054794,120]
[342797885,1732143052465,-500.0,0.00054794,120]
[342797886,1732143052475,-500.0,0.00054794,120]
[342797887,1732143052485,-500.0,0.00054794,120]
[342797888,1732143052495,-500.33,0.00054794,120]
[342797889,1732143052505,-500.0,0.00054794,120]
[342797890,1732143052514,-619.43,0.00054794,120]
[342797891,1732143052524,-6717.87,0.00054794,120]
[342797892,1732143052534,-1395.84,0.00054794,120]
[342797893,1732143052543,-4210.05,0.00054794,120]
[342797894,1732143052553,-509.69113778,0.00054794,120]
[342797895,1732143052563,-500.0,0.00054794,120]
[342797896,1732143052573,-4619.32,0.00054794,120]
[342797897,1732143052583,-2125.56,0.00054794,120]
[342797898,1732143052592,-500.0,0.00054794,120]
[342797899,1732143052602,-500.0,0.00054794,120]
[342797900,1732143052611,-1522.48,0.00054794,120]
[342797901,1732143052621,-500.0,0.00054794,120]
[342797902,1732143052630,-500.0,0.00054794,120]
[342797903,1732143052641,-260.413462,0.00054794,120]
[342797904,1732143052650,-511.42774008,0.00054794,60]
[342797905,1732143052660,-2913.49,0.00054794,120]
[342797906,1732143052670,-500.0,0.00054794,120]
[342797907,1732143052680,-500.0,0.00054794,120]
[342797908,1732143052690,-500.0,0.00054794,120]
[342797909,1732143052700,-6408.58,0.00054794,60]
[342797910,1732143052710,-8536.13,0.00054794,120]
[342797911,1732143052719,-500.0,0.00054794,120]
[342797912,1732143052729,-500.0,0.00054794,120]
[342797913,1732143052738,-931.52,0.00054794,120]
[342797914,1732143052747,-5185.83,0.00054794,120]
[342797915,1732143052757,-500.0,0.00054794,120]
[342797916,1732143052766,-873.24,0.00054794,120]
[342797917,1732143052776,-500.0,0.00054794,120]
[342797918,1732143052786,-500.0,0.00054794,120]
[342797919,1732143052796,-1838.8,0.00054794,120]
[342797920,1732143052805,-1525.45,0.00054794,120]
[342797921,1732143052815,-500.0,0.00054794,120]
[342797922,1732143052825,-1373.0,0.00054794,120]
[342797923,1732143052834,-1659.86,0.00054794,120]
[342797924,1732143052844,-500.0,0.00054794,120]
[342797925,1732143052854,-500.0,0.00054794,120]
[342797926,1732143052863,-647.02,0.00054794,120]
[342797927,1732143052877,-5907.77,0.00054794,120]
[342797928,1732143052888,-500.0,0.00054794,120]
[342797929,1732143052901,-1210.69,0.00054794,120]
[342797930,1732143052911,-500.0,0.00054794,120]
[342797931,1732143052921,-500.0,0.00054794,120]
[342797932,1732143052930,-500.0,0.00054794,120]
[342797933,1732143052941,-526.64,0.00054794,120]
[342797934,1732143052952,-12504.89,0.00054794,120]
[342797935,1732143052962,-2076.98,0.00054794,120]
[342797936,1732143052971,-1181.36,0.00054794,120]
[342797937,1732143052981,-677.21,0.00054794,120]
[342797938,1732143052991,-2434.04,0.00054794,120]
[342797939,1732143053001,-1109.03,0.00054794,120]
[342797940,1732143053011,-500.0,0.00054794,120]
[342797941,1732143053021,-500.0,0.00054794,120]
[342797942,1732143053031,-1099.32,0.00054794,120]
[342797943,1732143053041,-4681.73,0.00054794,120]
[342797944,1732143053051,-1502.22,0.00054794,120]
[342797945,1732143053060,-651.95,0.00054794,120]
[342797946,1732143053070,-500.0,0.00054794,120]
[342797947,1732143053079,-757.95,0.00054794,120]
[342797948,1732143053088,-500.0,0.00054794,120]
[342797949,1732143053099,-986.66,0.00054794,120]
[342797950,1732143053108,-500.0,0.00054794,120]
[342797951,1732143053118,-500.0,0.00054794,30]
[342797952,1732143053127,-880.48,0.00054794,120]
[342797953,1732143053137,-500.0,0.00054794,120]
[342797954,1732143053147,-500.0,0.00054794,120]
[342797955,1732143053156,-1166.87,0.00054794,120]
[342797956,1732143053165,-500.0,0.00054794,120]
[342797957,1732143053176,-500.0,0.00054794,120]
[342797958,1732143053187,-218.073558,0.00054794,120]
[342797959,1732143053197,-1450.31,0.00054794,120]
[342797960,1732143053207,-242.67986024,0.00054794,120]
[342797961,1732143053216,-533.88,0.00054794,120]
[342797962,1732143053225,-548.14,0.00054794,120]
[342797963,1732143053235,-2144.4,0.00054794,120]
[342797964,1732143053244,-500.0,0.00054794,120]
[342797965,1732143053253,-1032.14,0.00054794,120]
[342797966,1732143053263,-500.0,0.00054794,120]
[342797967,1732143053272,-14474.38,0.00054794,120]
[342797968,1732143053281,-500.0,0.00054794,120]
[342797969,1732143053290,-16729.96,0.00054794,120]
[342797970,1732143053299,-500.0,0.00054794,120]
[342797971,1732143053308,-500.0,0.00054794,120]
[342797972,1732143053317,-500.0,0.00054794,120]
[342797973,1732143053326,-500.0,0.00054794,120]
[342797974,1732143053336,-500.0,0.00054794,120]
[342797975,1732143053345,-2375.8,0.00054794,120]
[342797976,1732143053354,-500.0,0.00054794,120]
[342797977,1732143053363,-500.0,0.00054794,120]
[342797978,1732143053373,-726.78,0.00054794,120]
[342797979,1732143053382,-3517.73,0.00054794,120]
[342797980,1732143053392,-500.0,0.00054794,120]
[342797981,1732143053402,-500.0,0.00054794,120]
[342797982,1732143053411,-500.0,0.00054794,120]
[342797983,1732143053421,-2949.54,0.00054794,120]
[342797984,1732143053430,-500.0,0.00054794,120]
[342797985,1732143053440,-680.36,0.00054794,120]
[342797986,1732143053450,-629.45,0.00054794,120]
[342797987,1732143053459,-500.0,0.00054794,120]
[342797988,1732143053468,-1835.32,0.00054794,120]
[342797989,1732143053478,-500.0,0.00054794,120]
[342797990,1732143053487,-500.0,0.00054794,120]
[342797991,1732143053496,-1077.92,0.00054794,120]
[342797992,1732143053506,-567.38,0.00054794,120]
[342797993,1732143053515,-1270.02,0.00054794,120]
[342797994,1732143053524,-589.3869057,0.00054794,120]
[342797995,1732143053534,-1080.78,0.00054794,120]
[342797996,1732143053543,-500.0,0.00054794,30]
[342797997,1732143053552,-500.0,0.00054794,120]
[342797998,1732143053562,-500.0,0.00054794,120]
[342797999,1732143053572,-500.0,0.00054794,120]
[342798000,1732143053582,-794.46,0.00054794,120]
[342798001,1732143053591,-500.0,0.00054794,120]
[342798002,1732143053601,-836.47,0.00054794,120]
[342798003,1732143053610,-730.91,0.00054794,120]
[342798004,1732143053620,-1006.93,0.00054794,120]
[342798005,1732143053630,-877.06,0.00054794,120]
[342798006,1732143053640,-500.0,0.00054794,120]
[342798007,1732143053649,-210.928221,0.00054794,120]
[342798008,1732143053659,-873.31,0.00054794,120]
[342798009,1732143053668,-500.0,0.00054794,120]
[342798010,1732143053677,-500.0,0.00054794,120]
[342798011,1732143053686,-897.49,0.00054794,120]
[342798012,1732143053696,-5067.66,0.00054794,120]
[342798013,1732143053706,-500.0,0.00054794,120]
[342798014,1732143053715,-500.0,0.00054794,120]
[342798015,1732143053725,-155.055593,0.00054794,120]